{"text_format":"1","workbook":"xlsx","n_sheets":3,"sheets":["Лист1","Лист2","Лист3"],"not_rendered":{"charts":0,"images":0,"macros":0,"external_links":0,"defined_names":1,"comments":0,"pivot_tables":0},"unopened":[],"bounds":{"document_bytes":16777216,"sheet_cells":100000,"rows_first":2000,"rows_last":500,"rows_between":2000,"halvings":0,"cell_chars":16384,"cell_head_chars":4096},"cells_cut":0,"cells_raw":0,"read":"whole","date_system":"1900"}

{"sheet":"Лист1","index":0,"n_rows":88,"n_cols":18,"rows_kept":88,"cut":false,"hidden":false,"merged":[[86,8,86,10],[86,1,86,5],[80,0,83,1],[70,7,70,10],[74,0,74,4],[66,10,69,10],[59,4,65,4],[59,10,65,10],[66,4,69,4],[75,0,76,0],[72,10,74,10],[79,0,79,4],[75,1,76,1],[80,2,83,4],[75,4,76,4],[75,10,76,10],[13,8,14,8],[21,10,34,10],[35,6,35,10],[59,1,67,1],[77,0,77,4],[32,0,34,0],[11,1,14,1],[44,1,45,1],[11,4,14,4],[11,5,14,5],[21,1,28,1],[27,2,28,2],[27,3,28,3],[11,2,14,2],[44,4,45,4],[2,8,2,12],[29,0,31,4],[42,0,43,4],[46,0,46,4],[8,0,9,10],[11,0,14,0],[13,6,14,6],[11,10,14,10],[11,3,14,3],[23,2,24,2],[23,3,24,3],[21,4,28,4],[6,8,6,9],[13,7,14,7],[13,9,14,9],[11,6,12,9]]}
[]
[]
[null,null,null,null,null,"               ",null,null,"Додаток  2                                                                                                                                          до рішення міської ради"]
[]
[]
[]
[null,null,null,null,null,null,null,null,"26.04.2017 №1597"]
[]
["Перелік завдань і заходів  Програми розвитку та утримання житлово-комунального господарства міста на період 2017– 2019 років"]
[]
[]
["№ з/п","Назва напряму діяльності (пріоритетні завдання) ","Перелік заходів програми ","Строк, роки ","Виконавці ","Джерела фінансу -вання ","Орієнтовні обсяги потреби в фінансуванні (вартість),  тис. гривень, у тому числі:",null,null,null,"Очікуваний результат "]
[]
[null,null,null,null,null,null,"2017 рік","2018 рік ","2019 рік","Усього"]
[]
[1,2,3,4,5,6,7,8,9,10,11]
[]
[]
[]
[]
[]
[1,"1. Утримання, ремонт, рекон-струкція жит-лового фонду","1.1. Капітальний ремонт ліфтів","2017-2019","Управління благоустрою та житлової політики виконкому Криворізької міської ради","Міський бюджет",20000,25000,30000,{"$f":"G22+H22+I22","v":75000}," Гарантування    умов   безпечного та комфортного проживання насе-лення. Надання  об’єднанням спів-власників багато-квартирного бу-динку передба-ченої чинним за-конодавством Ук-раїни технічної та/ або іншої доку-ментації на житло-ві будинки. Без-печне  користу-вання   ліфтами  мешканцями ба-гатоквартирних будинків, їх на-лежна технічна експлуатація та безперебійна ро-бота. Подовження   терміну експлуа-тації ліфтів. Покращення еко-логічної ситуації в місті (санітарне очищення). Замі-на старих табли-чок з назвами то-понімів на будин-ках на нові. Під-вищення рівня на-дання населенню житлово-кому-нальних послуг відповідно до вимог національ-них стандартів, гармонізованих з міжнародними або регіональними\n\n\n"]
[null,null,"1.2. Експертне обсте-ження ліфтів","2017-2019",null,"Міський бюджет",100,120,150,{"$f":"+G23+H23+I23","v":370}]
[null,null,"1.3. Капітальний, по-точний ремонт та ре- конструкція житлового фонду","2017-2019",null,"Міський бюджет",50000,55000,60000,165000]
[null,null,null,null,null,"Власні надхо-дження",200,200,200,600]
[null,null,"1.4. Охорона об'єктів житлового фонду","2017-2019",null,"Міський бюджет",500,500,500,1500]
[null,null,"1.5. Придбання та вста-новлення аншлагів","2017-2019",null,"Міський бюджет ",1500,1500,1500,4500]
[null,null,"1.6. Заходи з енерго-ефективності та енер-гозбереження в житло-вому фонді (поточний ремонт житлових будинків)","2017-2019",null,"Субвенція з обласного бюджету бюджетам міст, райо-нів та об’єд-нанням тери-торіальних громад на виконання доручень виборців депутатами обласної ради у 2017 році",2000,0,0,{"$f":"+G28+H29+I29","v":2000}]
[null,null,null,null,null,"Міський бюджет ",2000,0,0,{"$f":"G29","v":2000}]
["Усього",null,null,null,null,"Міський бюджет",{"$f":"G22+G23+G24+G26+G27+G29","v":74100},{"$f":"H22+H23+H24+H26+H27","v":82120},{"$f":"I22+I23+I24+I26+I27","v":92150},{"$f":"J22+J23+J24+J26+J27+J29","v":248370}]
[null,null,null,null,null,"Власні надхо-дження",{"$f":"G25","v":200},{"$f":"H25","v":200},{"$f":"I25","v":200},{"$f":"+G31+H31+I31","v":600},null,null,null,null,null,null,null," "]
[null,null,null,null,null,"Субвенція з обласного бюджету бюджетам міст, райо-нів та об’єд-нанням тери-торіальних громад на виконання доручень виборців депутатами обласної ради у 2017 році",{"$f":"G28","v":2000},0,0,{"$f":"J28","v":2000}]
[2,"2. Комунальне майно","2.1. Оформлення вис-новку спеціалізованої організації про немож-ливість подальшої екс-плуатації  основних за- собів та необоротних активів","2017-2019","Управління благоустрою та житлової політики виконкому Криворізької міської ради","Міський бюджет",15,15,15,{"$f":"+G33+H33+I33","v":45}]
[null,null,"2.2. Інвентаризація, тех-нічна інвентаризація, оцінка об'єктів нерухо-мого майна ","2017-2019",null,"Міський бюджет",725,725,725,2175]
[null,null,"2.3. Виготовлення технічної та іншої документації на об'єкти житлового  фонду","2017-2019",null,"Міський бюджет",1300,1300,1300,3900]
[null,null,null,null,null,2,"                                         Продовження додатка 2"]
[1,2,3,4,5,6,7,8,9,10,11]
[null,null,"2.4. Знесення (розби-рання) об'єктів нерухо-мого майна","2017-2019",null,"Міський бюджет",1000,500,500,2000]
[null,null,"2.5. Сплата  земельного податку","2017-2019",null,"Власні надхо-дження",500,600,700,1800]
[null,null,"2.6. Судові витрати та оголошення за судовими справами","2017-2019",null,"Міський бюджет",20,20,20,60]
[null,null,"2.7. Висвітлення діяль-ності управління благо-устрою та житлової по-літики виконкому Кри-ворізької міської ради в засобах масової інфор-мації","2017-2019",null,"Міський бюджет",190,190,190,570]
[null,null,"2.8. Реєстрація та пере-реєстрація автотранс-порту (узяття на облік та зняття з нього)","2017-2019",null,"Міський бюджет",10,10,10,30]
["Усього",null,null,null,null,"Міський бюджет",{"$f":"G42+G41+G40+G38+G35+G34+G33","v":3260},{"$f":"H42+H41+H40+H38+H35+H34+H33","v":2760},2760,{"$f":"J42+J41+J40+J38+J35+J34+J33","v":8780}]
[null,null,null,null,null,"Власні надхо-дження",{"$f":"G39","v":500},{"$f":"H39","v":600},{"$f":"I39","v":700},{"$f":"G44+H44+I44","v":1800}]
[3,"3. Санітарна очистка міста","3.1. Оформлення права користування земель-ними ділянками під по-лігонами звалищ сміття міста","2017-2019","Управління благоустрою та житлової політики виконкому Криворізької міської ради","Міський бюджет",190,null,null,{"$f":"G45+H45+I45","v":190}]
[null,null,"3.2. Ліквідація стихійних звалищ","2017-2019",null,"Міський бюджет",190,190,190,{"$f":"G46+H46+I46","v":570}]
["Усього",null,null,null,null,"Міський бюджет ",{"$f":"G45+G46","v":380},{"$f":"H45+H46","v":190},{"$f":"I45+I46","v":190},{"$f":"G47+H47+I47","v":760}]
[]
[]
[]
[]
[]
[]
[]
[]
[]
[]
[]
[]
[4,"4. Підтримка  комунальних підприємств, надавачів пос-луг з теплопос-тачання, водо-постачання та водовідведення","4.1. Оплата за енерго-носії","2017-2019","Управління благоустрою та житлової політики виконкому Криворізької міської ради-головний           розпорядник, комунальне підприємство теплових мереж \"Кри-воріжтепло-мережа\"-одержувач коштів","Міський бюджет ",120000,80000,40000,{"$f":"G60+H60+I60","v":240000},"Економія теплової та електричної енергії, природ-ного газу, покра-щення якості ви-конання робіт на системі тепло- постачання"]
[null,null,"4.2. Придбання теплоізо-ляційних матеріалів","2017-2019",null,"Міський бюджет ",5000,5000,5000,15000]
[null,null,"4.3. Придбання блочних автоматизованих паль-ників з частотними пе-ретворювачами","2017-2019",null,"Міський бюджет ",5000,5000,5000,15000]
[null,null,"4.4. Реконструкція схеми теплопостачання","2017-2019",null,"Міський бюджет ",1500,0,0,1500]
[null,null,"4.5. Демонтаж димової труби котельні \"Прорізна, 87\"","2017-2019",null,"Міський бюджет ",1500,0,0,1500]
[null,null,"4.6. Поповнення статут-ного  капіталу  на  прид-бання   обладнання   і предметів довгостро-кового користування","2017-2019",null,"Міський бюджет ",1420,0,0,1420]
[null,null,"4.7. Поповнення статут-ного капіталу на прид-бання спецтехніки та об-ладнання","2017-2019",null,"Міський бюджет ",2450,0,0,2450]
[null,null,"4.8. Оплата за енерго-носії","2017-2019","Управління благоустрою та житлової політики виконкому Криворізької міської ради-головний розпорядник, комунальне підприємство \"Кривбасво-доканал\"-одержувач коштів","Міський бюджет",30000,30000,30000,90000,"Покращення якості надання послуг з водопос-тачання та водо-відведення. Зни-ження травма-тизму населення, запобігання не-щасним випадкам. Економія енергоресурсів"]
[null,null,"4.9. Придбання кришок люків","2017-2019",null,"Міський бюджет",2000,2000,2000,6000]
[null,null,"4.10. Послуги щодо фі-нансового лізингу на придбання спецтехніки","2017-2019",null,"Міський бюджет",14962.672,5384.9,0,20347.572]
[null,null,"4.11.  Капітальний  ре-монт мереж водопос-тачання та водовідве-дення","2017-2019",null,"Міський бюджет",62408.800000000003,0,0,62408.800000000003]
[null,null,null,null,null,3,null,"                                  Продовження додатка 2"]
[1,2,3,4,5,6,7,8,9,10,11]
[null,null,"4.12. Придбання мате-ріалів, обладнання (устаткування) для виконання капітальних ремонтів мереж та споруд водопостачання та водовідведення","2017-2019",null,"Міський бюджет ",10520,13000,17000,40520]
[null,null,"4.13.  Придбання  спец-техніки  та  спецоблад-нання","2017-2019",null,"Міський бюджет",14738.84,0,0,14738.84]
["Усього",null,null,null,null,"Міський бюджет",{"$f":"G60+G61+G62+G63+G64+G65+G66+G67+G69+G70+G73+G74","v":269500.31200000003},{"$f":"H60+H61+H62+H63+H64+H65+H66+H67+H69+H70+H73+H74","v":138384.9},{"$f":"I60+I61+I62+I63+I64+I65+I66+I67+I69+I70+I73+I74","v":97000},{"$f":"G75+H75+I75","v":504885.21200000006}]
[5,"5. Заходи,  пов’язані з еко-номічною дія-льністю кому-нального   зак-ладу   \"Дитя-чий оздоровчий табір\"Корчагі-нець\"","5.1. Поповнення статут-ного капіталу на прид-бання  обладнання   і предметів довгостро-кового користування","2017-2019","Управління благоустрою та житлової політики виконкому Криворізької міської ради-головний розпорядник, комунальний заклад \"Дитя-чий оздоров-чий табір  \"Корчагінець\"-одержувач коштів","Міський бюджет",300,0,0,300,"Забезпечення умов для оздоровлення дітей та стабільної роботи комунального закладу \"Дитячий оздоровчий табір  \"Корчагінець\" "]
[null,null,"5.2. Інші  заходи, пов'язані з економічною діяльністю закладу","2017-2019",null,"Міський бюджет",500,0,0,500]
["Усього",null,null,null,null,"Міський бюджет",{"$f":"G76+G77","v":800},{"$f":"H76+H77","v":0},{"$f":"I76+I77","v":0},800," "]
[6,"6. Заходи,  пов’язані з еко-номічною дія-льністю кому-нального  підприємства \"Кривбастепло-енерго\"","6.1. Заходи, пов´язані з залученням кредитних ресурсів на впроваджен-ня проектів з енерго-ефективності","2017-2019","Управління благоустрою та житлової політики виконкому Криворізької міської ради-головний розпорядник, комунальне підприємство \"Кривбастеп-лоенерго\"-одержувач коштів","Міський бюджет",1000,1000,1000,{"$f":"G79+H79+I79","v":3000},"Реалізація програм пріоритетних інвестицій для підвищення енергоефективності громадських будівель"]
["Усього",null,null,null,null,"Міський бюджет",{"$f":"G79","v":1000},{"$f":"H79","v":1000},1000,3000," "]
["Усього за Програмою, у тому числі",null," ",null,null,"Усього",{"$f":"G82+G83+G84","v":351740.31200000003},{"$f":"H82+H83","v":225254.9},{"$f":"I82+I83","v":194000},{"$f":"J82+J83+J84","v":770995.21200000006}]
[null,null,null,null,null,"Міський бюджет",{"$f":"G30+G43+G47+G75+G78+G80","v":349040.31200000003},{"$f":"H30+H43+H47+H75+H78+H80","v":224454.9},{"$f":"I30+I43+I47+I75+I78+I80","v":193100},{"$f":"J30+J43+J47+J75+J78+J80","v":766595.21200000006}]
[null,null,null,null,null,"Власні надход-ження",{"$f":"G31+G44","v":700},{"$f":"H31+H44","v":800},{"$f":"I31+I44","v":900},{"$f":"G83+H83+I83","v":2400}]
[null,null,null,null,null,"Субвенція з обласного бюджету бюджетам міст, райо-нів та об’єд-нанням тери-торіальних громад на виконання доручень виборців депутатами обласної ради у 2017 році",{"$f":"G32","v":2000},null,null,{"$f":"J32","v":2000}]
[]
[]
[null,"Секретар міської ради",null,null,null,null,null,null,"      С.Маляренко"]
[null,null,null,null,null,"   ","                                          "]

{"sheet":"Лист2","index":1,"n_rows":0,"n_cols":0,"rows_kept":0,"cut":false,"hidden":false,"merged":[]}

{"sheet":"Лист3","index":2,"n_rows":0,"n_cols":0,"rows_kept":0,"cut":false,"hidden":false,"merged":[]}